bitfinex-derivatives/quotes_BTCF0:USTF0_20241224
["timestamp","ask_amount","ask_price","bid_price","bid_amount"]
[1735004598285,0.414909,94262.0,94257.0,0.053112]
[1735004598686,0.009,94258.0,94254.0,0.0455]
[1735004598876,0.014,94258.0,94254.0,0.0455]
[1735004599084,0.053113,94256.0,94251.0,0.00159147]
[1735004599391,0.053115,94252.0,94251.0,0.00159147]
[1735004601196,0.413913,94257.0,94251.0,0.05470647]
[1735004601379,0.3608,94257.0,94251.0,0.05470647]
[1735004601582,0.053113,94256.0,94251.0,0.05470647]
[1735004601887,0.3608,94257.0,94251.0,0.05470647]
[1735004602086,0.001,94252.0,94251.0,0.05670647]
[1735004602487,0.3618,94257.0,94251.0,0.05470647]
[1735004602991,0.053115,94253.0,94251.0,0.00159147]
[1735004603181,0.009,94252.0,94251.0,0.00159147]
[1735004604396,0.015,94252.0,94251.0,0.00159147]
[1735004604687,0.006,94252.0,94251.0,0.00159147]
[1735004605284,0.015,94252.0,94251.0,0.00159147]
[1735004605592,0.009,94252.0,94251.0,0.00159147]
[1735004606394,0.053115,94253.0,94251.0,0.00159147]
[1735004607292,0.006,94252.0,94251.0,0.00159147]
[1735004608097,0.053115,94253.0,94251.0,0.00159147]
[1735004609500,0.17820991,94253.0,94251.0,0.00159147]
[1735004613994,0.053115,94253.0,94251.0,0.00159147]
[1735004616204,0.12509491,94254.0,94251.0,0.00159147]
[1735004616405,0.12509491,94254.0,94252.0,0.053115]
[1735004616707,0.12509491,94253.0,94252.0,0.053115]
[1735004617805,0.004,94254.0,94252.0,0.053115]
[1735004618201,0.012,94253.0,94252.0,0.053115]
[1735004619106,0.004,94253.0,94252.0,0.053115]
[1735004619703,0.012,94254.0,94253.0,0.053115]
[1735004620300,0.012,94254.0,94251.0,0.00159147]
[1735004620496,0.053115,94252.0,94251.0,0.00159147]
[1735004620901,0.100815,94252.0,94251.0,0.00159147]
[1735004622005,0.101815,94252.0,94251.0,0.00359147]
[1735004622404,0.15345981,94252.0,94251.0,0.00359147]
[1735004622803,0.15445981,94252.0,94251.0,0.00359147]
[1735004624202,0.053127,94231.0,94226.0,0.31795762]
[1735004624408,0.413929,94227.0,94226.0,0.31795762]
[1735004625508,0.413929,94227.0,94225.0,0.00010229]
[1735004627213,0.414929,94227.0,94225.0,0.00010229]
[1735004627506,0.417929,94227.0,94225.0,0.00010229]
[1735004630315,0.51244897,94227.0,94225.0,0.00010229]
[1735004631408,0.417929,94227.0,94225.0,0.00010229]
[1735004633817,0.00011075,94226.0,94225.0,0.00010229]
[1735004635210,0.00511075,94226.0,94225.0,0.00010229]
[1735004635619,0.00511075,94226.0,94206.0,0.053141]
[1735004635918,0.41394,94207.0,94206.0,0.053141]
[1735004636813,0.41394,94207.0,94206.0,0.001]
[1735004637213,0.3608,94207.0,94202.0,0.0482]
[1735004637423,0.053142,94205.0,94202.0,0.101343]
[1735004638221,0.3608,94207.0,94202.0,0.101343]
[1735004638416,0.053142,94204.0,94202.0,0.101343]
[1735004639820,0.3608,94207.0,94206.0,0.053141]
[1735004640120,0.3608,94216.0,94208.0,0.053139]
[1735004640322,0.3608,94216.0,94202.0,0.102343]
[1735004640515,0.001,94204.0,94202.0,0.0492]
[1735004641025,0.053141,94206.0,94202.0,0.0482]
[1735004641740,0.3608,94207.0,94206.0,0.053141]
[1735004641932,0.3608,94216.0,94210.0,0.053138]
[1735004642445,0.01046211,94218.0,94207.0,0.05314]
[1735004642634,0.053134,94220.0,94206.0,0.10800865]
[1735004642837,0.053134,94220.0,94204.0,0.3608]
[1735004643039,0.053134,94220.0,94205.0,0.053141]
[1735004643342,0.053134,94220.0,94211.0,0.053138]
[1735004643539,0.053134,94220.0,94214.0,0.053136]
[1735004643734,0.053134,94220.0,94215.0,0.0478]
[1735004644135,0.01083765,94223.0,94215.0,0.0478]
[1735004644136,0.01083765,94223.0,94215.0,0.100936]
[1735004644329,0.3608,94224.0,94215.0,0.100936]
[1735004644546,0.413931,94224.0,94215.0,0.100936]
[1735004644736,0.053132,94223.0,94215.0,0.100936]
[1735004645136,0.3608,94224.0,94215.0,0.100936]
[1735004645337,0.053132,94222.0,94215.0,0.100936]
[1735004646445,0.053132,94222.0,94215.0,0.101936]
[1735004647847,0.3608,94224.0,94222.0,0.053132]
[1735004648033,0.09433421,94229.0,94224.0,0.053131]
[1735004648744,0.413921,94243.0,94224.0,0.053131]
[1735004648745,0.09433421,94235.0,94224.0,0.053131]
[1735004649345,0.09433421,94235.0,94223.0,0.45934]
[1735004649547,0.09433421,94235.0,94233.0,0.053125]
[1735004649842,0.3608,94243.0,94242.0,0.053121]
[1735004650444,0.36090745,94243.0,94242.0,0.053121]
[1735004650950,0.00010745,94243.0,94242.0,0.413921]
[1735004651147,0.00910745,94243.0,94242.0,0.413921]
[1735004651352,0.00910745,94243.0,94242.0,0.42476257]
[1735004652345,0.01310745,94243.0,94242.0,0.413921]
[1735004652655,0.00410745,94243.0,94242.0,0.413921]
[1735004652955,0.01310745,94243.0,94242.0,0.413921]
[1735004653643,0.01310745,94243.0,94242.0,0.3608]
[1735004655752,0.43746712,94243.0,94235.0,0.0455]
[1735004656251,0.43746712,94243.0,94235.0,0.098625]
[1735004656952,0.43446712,94243.0,94235.0,0.098625]
[1735004657752,0.43046712,94243.0,94235.0,0.098625]
[1735004657949,0.43346712,94243.0,94235.0,0.098625]
[1735004658549,0.43046712,94243.0,94235.0,0.098625]
[1735004658857,0.43346712,94243.0,94235.0,0.098625]
[1735004659350,0.38034712,94243.0,94235.0,0.0455]
[1735004659556,0.053123,94239.0,94235.0,0.0455]
[1735004660257,0.37434712,94243.0,94235.0,0.0465]
[1735004660959,0.37134712,94243.0,94235.0,0.0465]
[1735004661951,0.37134712,94243.0,94239.0,0.053122]
[1735004662351,0.36090745,94243.0,94239.0,0.053122]
[1735004662554,0.36090745,94243.0,94242.0,0.053121]
[1735004663562,0.36090745,94243.0,94236.0,0.053124]
[1735004663860,0.41502745,94243.0,94242.0,0.001]
[1735004665562,0.41602745,94243.0,94242.0,0.001]
[1735004665762,0.41502745,94243.0,94238.0,0.053123]
[1735004665965,0.41602745,94243.0,94242.0,0.001]
[1735004666262,0.36290745,94243.0,94242.0,0.001]
[1735004667055,0.36190745,94243.0,94242.0,0.001]
[1735004667973,0.36290745,94243.0,94242.0,0.001]
[1735004669263,0.36290745,94243.0,94242.0,0.054121]
[1735004670561,0.41602745,94243.0,94242.0,0.001]
[1735004672175,0.053129,94227.0,94224.0,0.3608]
[1735004672363,0.053129,94227.0,94217.0,0.053135]
[1735004672560,0.3608,94229.0,94218.0,0.30725356]
[1735004672865,0.05313,94225.0,94218.0,0.25411956]
[1735004673361,0.05313,94225.0,94221.0,0.053132]
[1735004674160,0.06513,94225.0,94221.0,0.053132]
[1735004674766,0.1026615,94225.0,94218.0,0.053134]
[1735004675068,0.3608,94219.0,94218.0,0.053134]
[1735004676859,0.3698,94219.0,94218.0,0.053134]
[1735004677461,0.3748,94219.0,94218.0,0.053134]
[1735004678156,0.3738,94219.0,94218.0,0.053134]
[1735004679471,0.013,94219.0,94218.0,0.053134]
[1735004680368,0.012,94219.0,94218.0,0.053134]
[1735004680777,0.004,94219.0,94218.0,0.053134]
[1735004680965,0.013,94219.0,94218.0,0.053134]
[1735004681161,0.00909906,94219.0,94212.0,0.25559956]
[1735004681366,0.3608,94213.0,94212.0,0.21520547]
[1735004681682,0.3608,94213.0,94208.0,0.31795762]
[1735004681683,0.053139,94209.0,94208.0,0.31795762]
[1735004681882,0.413939,94209.0,94208.0,0.31795762]
[1735004683275,0.3608,94209.0,94200.0,0.1]
[1735004683479,0.3608,94201.0,94200.0,0.1]
[1735004684567,0.3628,94201.0,94200.0,0.1]
[1735004685973,0.3668,94201.0,94200.0,0.1]
[1735004686179,0.3648,94201.0,94200.0,0.1]
[1735004686369,0.3608,94201.0,94200.0,0.1]
[1735004686572,0.3618,94201.0,94200.0,0.1]
[1735004689874,0.3608,94201.0,94200.0,0.1]
[1735004696580,0.053141,94207.0,94200.0,0.1]
[1735004698183,0.055141,94207.0,94200.0,0.1]
[1735004698487,0.056141,94207.0,94200.0,0.1]
[1735004699080,0.003,94207.0,94200.0,0.1]
[1735004699276,0.053141,94206.0,94200.0,0.1]
[1735004700483,0.055141,94206.0,94200.0,0.1]
[1735004701592,0.056141,94206.0,94200.0,0.1]
[1735004702696,0.056141,94206.0,94200.0,0.153144]
[1735004702994,0.003,94206.0,94204.0,0.053142]
[1735004703179,0.003,94206.0,94205.0,0.0483]
[1735004704678,0.002,94206.0,94205.0,0.0483]
[1735004706186,0.001,94206.0,94205.0,0.0483]
[1735004706387,0.002,94206.0,94205.0,0.0483]
[1735004706787,0.001,94206.0,94205.0,0.0483]
[1735004707088,0.002,94206.0,94205.0,0.0483]
[1735004707393,0.09459319,94218.0,94217.0,0.053135]
[1735004707593,0.09459319,94218.0,94217.0,0.413935]
[1735004707796,0.09459319,94218.0,94217.0,0.053135]
[1735004708180,0.09459319,94218.0,94217.0,0.413935]
[1735004708385,0.09459319,94218.0,94210.0,0.053138]
[1735004708593,0.09459319,94218.0,94209.0,0.0951]
[1735004708892,0.09459319,94218.0,94213.0,0.053137]
[1735004709196,0.09459319,94218.0,94214.0,0.053136]
[1735004709586,0.09459319,94218.0,94208.0,0.00148]
[1735004709587,0.053139,94210.0,94208.0,0.00148]
[1735004709787,0.053141,94207.0,94204.0,0.01061279]
[1735004709995,0.3608,94205.0,94201.0,0.31795762]
[1735004711086,0.3608,94205.0,94200.0,0.1]
[1735004711685,0.3618,94205.0,94200.0,0.1]
[1735004712398,0.3608,94205.0,94200.0,0.101]
[1735004712698,0.48792426,94205.0,94201.0,0.19084016]
[1735004713688,0.12612426,94204.0,94201.0,0.19084016]
[1735004713993,0.12612426,94204.0,94202.0,0.053143]
[1735004715097,0.009,94204.0,94202.0,0.053143]
[1735004715498,0.12612426,94210.0,94202.0,0.053143]
[1735004715797,0.009,94204.0,94202.0,0.414943]
[1735004716300,0.09474798,94203.0,94202.0,0.414943]
[1735004716990,0.09474798,94203.0,94202.0,0.413943]
[1735004717184,0.09474798,94203.0,94202.0,0.414943]
[1735004717700,0.10374798,94203.0,94202.0,0.415943]
[1735004717994,0.015,94203.0,94202.0,0.415943]
[1735004719086,0.015,94203.0,94202.0,0.002]
[1735004727903,0.15778998,94214.0,94202.0,0.302]
[1735004728104,0.0600062,94219.0,94218.0,0.053134]
[1735004728405,0.2215635,94230.0,94229.0,0.053128]
[1735004728611,0.2215635,94230.0,94229.0,0.413928]
[1735004728992,0.2215635,94230.0,94229.0,0.774728]
[1735004729296,0.05,94253.0,94229.0,0.7216]
[1735004729507,0.05,94253.0,94245.0,0.413919]
[1735004729707,0.05,94253.0,94246.0,0.053118]
[1735004730005,0.05,94253.0,94248.0,0.053117]
[1735004731303,0.05,94253.0,94248.0,0.054117]
[1735004732093,0.05,94253.0,94251.0,0.19048107]
[1735004733202,0.05,94253.0,94251.0,0.19648107]
[1735004733495,0.052,94253.0,94251.0,0.015]
[1735004736604,0.002,94253.0,94251.0,0.015]
[1735004738403,0.002,94253.0,94251.0,0.068115]
[1735004740603,0.3608,94269.0,94251.0,0.015]
[1735004740804,0.3608,94269.0,94264.0,0.053108]
[1735004741004,0.3608,94269.0,94265.0,0.053107]
[1735004742011,0.3608,94269.0,94264.0,0.006]
[1735004742216,0.3608,94305.0,94268.0,0.053106]
[1735004742510,0.4086,94305.0,94284.0,0.46880865]
[1735004742702,0.3608,94305.0,94284.0,0.46880865]
[1735004742907,0.3608,94305.0,94295.0,0.10800865]
[1735004743103,0.053095,94288.0,94274.0,0.3608]
[1735004743305,0.3608,94285.0,94270.0,0.10959979]
[1735004743611,0.0486,94284.0,94278.0,0.0531]
[1735004744713,0.0486,94284.0,94270.0,0.00159114]
[1735004745209,0.101698,94284.0,94270.0,0.00159114]
[1735004745409,0.103698,94284.0,94270.0,0.00159114]
[1735004745601,0.0486,94283.0,94270.0,0.00159114]
[1735004746313,0.0486,94283.0,94270.0,0.00259114]
[1735004746514,0.3608,94273.0,94270.0,0.00259114]
[1735004747316,0.3608,94273.0,94270.0,0.00359114]
[1735004749109,0.3648,94273.0,94270.0,0.00259114]
[1735004749416,0.004,94273.0,94270.0,0.00259114]
[1735004753319,0.004,94273.0,94271.0,0.053104]
[1735004754520,0.009,94273.0,94271.0,0.054104]
[1735004754922,0.004,94273.0,94271.0,0.053104]
[1735004755111,0.009,94273.0,94271.0,0.054104]
[1735004758914,0.008,94273.0,94271.0,0.054104]
[1735004759114,0.003,94273.0,94271.0,0.053104]
[1735004759314,0.01,94273.0,94271.0,0.054104]
[1735004759815,0.01,94273.0,94271.0,0.001]
[1735004760519,0.060103,94273.0,94271.0,0.001]
[1735004760817,0.064103,94273.0,94272.0,0.25400081]
[1735004762007,0.064103,94273.0,94271.0,0.001]
[1735004762219,0.053104,94271.0,94270.0,0.00159114]
[1735004763019,0.053104,94271.0,94269.0,0.19056652]
[1735004763926,0.061104,94271.0,94270.0,0.001]
[1735004764319,0.053104,94271.0,94269.0,0.19056652]
[1735004764521,0.060104,94271.0,94269.0,0.19156652]
[1735004764723,0.060104,94271.0,94269.0,0.001]
[1735004764919,0.003,94271.0,94258.0,0.053112]
[1735004765118,0.3608,94259.0,94258.0,0.053112]
[1735004765720,0.053107,94266.0,94265.0,0.053108]
[1735004766920,0.053108,94265.0,94259.0,0.053111]
[1735004767229,0.053109,94263.0,94259.0,0.053111]
[1735004767425,0.3608,94268.0,94258.0,0.19056652]
[1735004767727,0.053111,94259.0,94258.0,0.19056652]
[1735004768227,0.053111,94259.0,94257.0,0.25400081]
[1735004768523,0.4556,94258.0,94257.0,0.25400081]
[1735004769431,0.4556,94258.0,94251.0,0.19068737]
[1735004769611,0.053115,94252.0,94251.0,0.19068737]
[1735004770826,0.053115,94252.0,94250.0,0.053116]
[1735004771926,0.41681694,94258.0,94247.0,0.25400081]
[1735004772119,0.413912,94258.0,94255.0,0.053113]
[1735004773128,0.3608,94258.0,94256.0,0.053113]
[1735004773328,0.3608,94258.0,94256.0,0.24365028]
[1735004774224,0.3628,94258.0,94256.0,0.24365028]
[1735004774731,0.3638,94258.0,94256.0,0.24365028]
[1735004775025,0.053112,94257.0,94256.0,0.19053728]
[1735004775515,0.053112,94257.0,94256.0,0.19553728]
[1735004775919,0.053112,94257.0,94256.0,0.005]
[1735004776915,0.053112,94257.0,94249.0,0.19053728]
[1735004776916,0.3628,94258.0,94249.0,0.19053728]
[1735004777123,0.053116,94250.0,94249.0,0.19053728]
[1735004777332,0.053118,94247.0,94246.0,0.19053728]
[1735004778030,0.413918,94247.0,94246.0,0.19053728]
[1735004778731,0.427918,94247.0,94246.0,0.001]
[1735004779622,0.43833305,94247.0,94246.0,0.001]
[1735004781518,0.053121,94242.0,94241.0,9.029e-05]
[1735004781723,0.413921,94242.0,94241.0,9.029e-05]
[1735004782635,0.053126,94233.0,94227.0,0.1904423]
[1735004782818,0.413929,94228.0,94227.0,0.1904423]
[1735004783133,0.053134,94219.0,94218.0,0.1904423]
[1735004783431,0.413934,94219.0,94218.0,0.1904423]
[1735004783633,0.41400866,94219.0,94218.0,0.1904423]
[1735004784528,0.41400866,94219.0,94218.0,0.001]
[1735004784929,0.41400866,94219.0,94218.0,0.002]
[1735004786030,0.42449758,94219.0,94218.0,0.002]
[1735004786430,0.053137,94213.0,94209.0,0.053139]
[1735004786733,0.053137,94213.0,94210.0,0.053139]
[1735004787831,0.37136358,94219.0,94209.0,0.003]
[1735004788045,0.053138,94211.0,94210.0,0.001]
[1735004789721,0.053138,94211.0,94210.0,0.002]
[1735004791635,0.413938,94211.0,94210.0,0.002]
[1735004798737,0.413938,94211.0,94210.0,0.055139]
[1735004798938,7.466e-05,94219.0,94210.0,0.3628]
[1735004799133,7.466e-05,94219.0,94218.0,0.053134]
[1735004799536,0.3608,94231.0,94218.0,0.3608]
[1735004799932,0.3608,94231.0,94225.0,0.05313]
[1735004800237,0.3608,94231.0,94226.0,0.092]
[1735004800430,0.053128,94230.0,94226.0,0.092]
[1735004800638,5.154e-05,94229.0,94226.0,0.092]
[1735004801533,5.154e-05,94229.0,94226.0,0.093]
[1735004802245,0.05317954,94229.0,94226.0,0.093]
[1735004803048,0.053129,94228.0,94226.0,0.093]
[1735004804447,0.055129,94228.0,94226.0,0.092]
[1735004804744,0.061129,94228.0,94226.0,0.093]
[1735004805938,0.061129,94228.0,94226.0,0.092]
[1735004806149,0.060129,94228.0,94226.0,0.093]
[1735004806534,0.055129,94228.0,94226.0,0.092]
[1735004806744,0.062129,94228.0,94226.0,0.093]
[1735004806948,0.066129,94228.0,94226.0,0.093]
[1735004807642,0.067129,94228.0,94226.0,0.093]
[1735004808544,0.067129,94228.0,94226.0,0.2834423]
[1735004809045,0.067129,94228.0,94226.0,0.2094423]
[1735004809543,0.067129,94228.0,94226.0,0.019]
[1735004812950,0.067129,94228.0,94227.0,0.19071112]
[1735004813954,0.062129,94228.0,94227.0,0.11671112]
[1735004814248,0.067129,94228.0,94227.0,0.002]
[1735004816638,0.067129,94228.0,94227.0,0.001]
[1735004816836,0.009,94228.0,94227.0,0.002]
[1735004817642,0.014,94228.0,94227.0,0.002]
[1735004823445,0.067129,94228.0,94227.0,0.002]
[1735004825351,0.067129,94228.0,94218.0,0.26443428]
[1735004825352,0.367129,94228.0,94218.0,0.25400081]
[1735004825657,0.053137,94213.0,94212.0,0.31776109]
[1735004825854,0.413937,94213.0,94212.0,0.31776109]
[1735004826151,0.41398854,94213.0,94212.0,0.31776109]
[1735004827356,0.41998854,94213.0,94212.0,0.31776109]
[1735004828460,0.053138,94211.0,94210.0,0.053138]
[1735004829149,0.52433225,94213.0,94206.0,0.1397]
[1735004829457,0.053139,94210.0,94206.0,0.1397]
[1735004829657,0.05314,94208.0,94206.0,0.1397]
[1735004830053,0.005,94211.0,94208.0,0.053139]
[1735004830258,0.002,94211.0,94208.0,0.053139]
[1735004830451,0.002,94211.0,94209.0,0.053139]
[1735004830657,0.36285154,94213.0,94206.0,0.1397]
[1735004830658,0.001,94210.0,94206.0,0.1397]
[1735004830848,0.001,94210.0,94209.0,0.053139]
[1735004831259,0.36085154,94213.0,94206.0,0.1397]
[1735004831567,5.154e-05,94213.0,94212.0,0.053138]
[1735004833256,0.12619268,94228.0,94222.0,0.053131]
[1735004833452,0.12619268,94228.0,94223.0,0.053131]
[1735004833655,0.12619268,94232.0,94224.0,0.0917]
[1735004834060,0.12619268,94232.0,94225.0,0.09853]
[1735004834445,0.004,94228.0,94225.0,0.09853]
[1735004835757,0.3608,94231.0,94225.0,0.09853]
[1735004836060,0.3608,94231.0,94225.0,0.0464]
[1735004836257,0.05313,94226.0,94225.0,0.001]
[1735004836462,0.05313,94226.0,94225.0,0.004]
[1735004836660,0.05313,94226.0,94225.0,0.003]
[1735004837160,0.05313,94226.0,94225.0,0.001]
[1735004837562,0.05813,94226.0,94224.0,0.0456]
[1735004837753,0.06713,94226.0,94225.0,0.001]
[1735004838851,0.06213,94226.0,94225.0,0.001]
[1735004839159,0.06713,94226.0,94225.0,0.001]
[1735004839863,0.005,94226.0,94216.0,0.097435]
[1735004840064,0.005,94226.0,94224.0,0.001]
[1735004840065,0.05313,94225.0,94224.0,0.001]
[1735004840448,0.053132,94223.0,94216.0,0.097435]
[1735004840855,0.053132,94223.0,94219.0,0.053133]
[1735004842457,0.053132,94223.0,94216.0,0.0453]
[1735004842760,0.01,94223.0,94216.0,0.0453]
[1735004842966,0.01,94223.0,94222.0,0.053132]
[1735004843360,0.011,94223.0,94222.0,0.053132]
[1735004843666,0.01,94223.0,94222.0,0.053132]
[1735004843867,0.003,94223.0,94222.0,0.053132]
[1735004844159,0.009,94223.0,94222.0,0.053132]
[1735004845762,0.012,94223.0,94222.0,0.053132]
[1735004846267,0.12619268,94238.0,94237.0,0.053124]
[1735004847264,0.12719268,94238.0,94237.0,0.058124]
[1735004848078,0.15748071,94246.0,94245.0,0.053119]
[1735004848256,0.08658071,94246.0,94245.0,0.413919]
[1735004848562,0.09456747,94250.0,94245.0,0.6608]
[1735004848755,0.15761245,94262.0,94261.0,0.05311]
[1735004848955,0.15761245,94262.0,94261.0,0.41391]
[1735004849155,0.18809287,94270.0,94261.0,0.71391]
[1735004849356,0.18809287,94270.0,94269.0,0.413906]
[1735004850065,0.18809287,94270.0,94269.0,0.053106]
[1735004850455,0.19009287,94270.0,94269.0,0.059106]
[1735004850660,0.002,94270.0,94269.0,0.059106]
[1735004850867,0.001,94270.0,94269.0,0.059106]
[1735004851160,0.002,94270.0,94269.0,0.068106]
[1735004855370,0.002,94270.0,94269.0,0.015]
[1735004857368,0.053115,94253.0,94248.0,0.053117]
[1735004857562,0.3608,94253.0,94251.0,0.053115]
[1735004858572,0.3628,94253.0,94251.0,0.053115]
[1735004858768,0.3688,94253.0,94251.0,0.053115]
[1735004859171,0.3628,94253.0,94251.0,0.053115]
[1735004859371,0.3628,94253.0,94243.0,0.01219049]
[1735004859372,0.3718,94253.0,94244.0,0.053119]
[1735004860376,0.3718,94253.0,94245.0,0.053119]
[1735004860967,0.3688,94253.0,94246.0,0.053118]
[1735004861169,0.3728,94253.0,94246.0,0.053118]
[1735004861778,0.3718,94253.0,94241.0,0.01045787]
[1735004861974,0.098615,94252.0,94241.0,0.05320395]
[1735004863479,0.102615,94252.0,94241.0,0.05320395]
[1735004863679,0.102615,94252.0,94241.0,8.295e-05]
[1735004863879,0.0495,94252.0,94242.0,0.053121]
[1735004864180,0.05312,94244.0,94241.0,8.295e-05]
[1735004864385,0.41392,94244.0,94241.0,8.295e-05]
[1735004864986,0.053121,94243.0,94241.0,8.295e-05]
[1735004865782,0.007,94244.0,94243.0,0.05312]
[1735004866276,0.002,94244.0,94243.0,0.05312]
[1735004867083,0.053112,94258.0,94248.0,0.053117]
[1735004867484,0.3608,94263.0,94260.0,0.05311]
[1735004868586,0.3618,94263.0,94260.0,0.05611]
[1735004868891,0.001,94263.0,94260.0,0.05611]
[1735004869083,0.002,94263.0,94260.0,0.05811]
[1735004871784,0.002,94263.0,94261.0,0.05311]
[1735004873089,0.002,94263.0,94261.0,0.003]
[1735004873090,0.413909,94262.0,94261.0,0.003]
[1735004874193,0.413909,94262.0,94250.0,0.10800865]
[1735004874490,0.414909,94262.0,94261.0,0.005]
[1735004874790,0.415909,94262.0,94261.0,0.005]
[1735004875492,0.414909,94262.0,94261.0,0.003]
[1735004876095,0.415909,94262.0,94261.0,0.005]
[1735004878101,0.055109,94262.0,94261.0,0.005]
[1735004878989,0.415909,94262.0,94261.0,0.005]
[1735004880589,0.053117,94249.0,94248.0,0.31776109]
[1735004880795,0.3608,94249.0,94242.0,0.31776109]
[1735004880992,0.05312,94244.0,94242.0,0.31776109]
[1735004882397,0.05912,94244.0,94242.0,0.001]
[1735004883286,0.006,94244.0,94242.0,0.054121]
[1735004883686,0.009,94244.0,94242.0,0.054121]
[1735004883890,0.009,94244.0,94242.0,0.001]
[1735004884092,0.01,94244.0,94241.0,8.295e-05]
[1735004884790,0.053121,94242.0,94241.0,8.295e-05]
[1735004886098,0.003,94242.0,94241.0,8.295e-05]
[1735004886996,0.01,94242.0,94241.0,8.295e-05]
[1735004887396,0.003,94242.0,94241.0,8.295e-05]
[1735004887595,0.01,94242.0,94241.0,0.36088295]
[1735004888196,0.01,94242.0,94241.0,0.40758295]
[1735004888502,0.003,94242.0,94241.0,0.40758295]
[1735004888692,0.007,94242.0,94241.0,0.40758295]
[1735004888895,0.419921,94242.0,94241.0,8.295e-05]
[1735004889188,0.053127,94231.0,94230.0,0.31776109]
[1735004889389,0.053129,94227.0,94226.0,0.00159177]
[1735004890198,0.053132,94222.0,94221.0,0.28398125]
[1735004890396,0.413932,94222.0,94221.0,0.28398125]
[1735004890794,0.053136,94215.0,94214.0,0.31792036]
[1735004891793,0.053136,94215.0,94214.0,0.31892036]
[1735004891994,0.053136,94215.0,94214.0,0.001]
[1735004892702,0.054136,94215.0,94214.0,0.001]
[1735004894097,0.0925,94217.0,94200.0,0.1]
[1735004894405,0.3608,94202.0,94200.0,0.1]
[1735004895497,0.3608,94202.0,94200.0,0.103]
[1735004895697,0.3628,94202.0,94200.0,0.103]
[1735004895898,0.002,94202.0,94200.0,0.1]
[1735004896204,0.007,94202.0,94200.0,0.0963]
[1735004896503,0.053153,94185.0,94162.0,0.44391059]
[1735004896804,0.774753,94185.0,94162.0,0.44391059]
[1735004897006,0.774753,94185.0,94162.0,0.49707659]
[1735004897303,0.774753,94185.0,94163.0,0.31792036]
[1735004897597,0.05316,94174.0,94167.0,0.053163]
[1735004897804,0.3608,94168.0,94167.0,0.053163]
[1735004899100,0.3608,94168.0,94163.0,0.31792036]
[1735004899298,0.053164,94165.0,94156.0,0.0921]
[1735004900009,0.3608,94160.0,94156.0,0.0921]
[1735004901608,0.3618,94160.0,94156.0,0.0921]
[1735004903704,0.3618,94160.0,94158.0,0.00120151]
[1735004904595,0.3618,94160.0,94159.0,0.00120151]
[1735004904995,0.10800865,94166.0,94159.0,0.00120151]
[1735004905303,0.414967,94160.0,94159.0,0.00120151]
[1735004905699,0.414967,94160.0,94159.0,0.00220151]
[1735004907302,0.414967,94160.0,94151.0,0.0451]
[1735004907303,0.053177,94142.0,94141.0,0.00012662]
[1735004907500,0.774777,94142.0,94141.0,0.00012662]
[1735004907707,0.77485654,94142.0,94141.0,0.00012662]
[1735004908401,0.77585654,94142.0,94141.0,0.00112662]
[1735004909010,0.77485654,94142.0,94141.0,0.00112662]
[1735004909206,0.053182,94134.0,94132.0,0.00159348]
[1735004909403,0.3608,94133.0,94127.0,0.0037]
[1735004909602,0.3608,94129.0,94127.0,0.0037]
[1735004912410,0.3618,94129.0,94127.0,0.056885]
[1735004915015,0.3618,94129.0,94127.0,0.0037]
[1735004915407,0.3608,94129.0,94127.0,0.0037]
[1735004915807,0.3608,94129.0,94128.0,0.053185]
[1735004916818,0.37156061,94129.0,94128.0,0.053185]
[1735004917013,0.37256061,94129.0,94128.0,0.053185]
[1735004917616,0.37356061,94129.0,94128.0,0.053185]
[1735004918209,0.37656061,94129.0,94128.0,0.053185]
[1735004918712,0.37256061,94129.0,94128.0,0.053185]
[1735004918913,0.37756061,94129.0,94128.0,0.053185]
[1735004919507,0.37756061,94129.0,94127.0,0.0037]
[1735004919712,0.37856061,94129.0,94127.0,0.0037]
[1735004919916,0.053185,94128.0,94127.0,0.0037]
[1735004921420,0.3608,94129.0,94128.0,0.053185]
[1735004923524,0.3638,94129.0,94128.0,0.053185]
[1735004923823,0.3698,94129.0,94127.0,0.0037]
[1735004924227,0.3688,94129.0,94127.0,0.0037]
[1735004924517,0.3678,94129.0,94127.0,0.0037]
[1735004924921,0.3628,94129.0,94127.0,0.0037]
[1735004925126,0.3678,94129.0,94127.0,0.0037]
[1735004925717,0.3658,94129.0,94127.0,0.0037]
[1735004925929,0.3688,94129.0,94127.0,0.0037]
[1735004927026,0.3608,94129.0,94127.0,0.0037]
[1735004927325,0.3678,94129.0,94127.0,0.0037]
[1735004928730,0.3678,94129.0,94127.0,0.056885]
[1735004929126,0.098878,94141.0,94127.0,0.056885]
[1735004929127,0.3608,94138.0,94127.0,0.417685]
[1735004929321,0.3608,94157.0,94137.0,0.3608]
[1735004929520,0.053159,94175.0,94158.0,0.053168]
[1735004929715,0.3608,94168.0,94158.0,0.053168]
[1735004930530,0.12527957,94159.0,94158.0,0.053168]
[1735004930724,0.00013708,94159.0,94158.0,0.053168]
[1735004931122,0.12514249,94176.0,94175.0,0.053159]
[1735004932036,0.3608,94178.0,94176.0,0.053158]
[1735004932526,0.0001068,94177.0,94176.0,0.053158]
[1735004933025,0.0001068,94177.0,94176.0,0.098758]
[1735004933233,0.0001068,94177.0,94176.0,0.102758]
[1735004933817,0.0001068,94177.0,94176.0,0.107758]
[1735004934424,0.0011068,94177.0,94176.0,0.107758]
[1735004934929,0.0021068,94177.0,94176.0,0.105758]
[1735004936338,0.3608,94203.0,94194.0,0.053148]
[1735004936520,0.3608,94203.0,94197.0,0.053146]